fUSD/lending_fUSD_20241205
["ID","MTS","AMOUNT","RATE_DAILY","PERIOD"]
[344411012,1733420113779,500.0,9.999e-05,2]
[344411013,1733420113815,500.0,7.397e-05,2]
[344411014,1733420113854,500.0,9.999e-05,2]
[344411015,1733420113895,500.0,7.397e-05,2]
[344411016,1733420113932,500.0,9.999e-05,2]
[344411017,1733420113977,500.0,9.999e-05,2]
[344411018,1733420114021,500.0,7.397e-05,2]
[344411019,1733420114057,500.0,9.999e-05,2]
[344411020,1733420114096,500.0,7.397e-05,2]
[344411021,1733420114137,500.0,9.999e-05,2]
[344411022,1733420114173,500.0,7.397e-05,2]
[344411023,1733420114213,500.0,9.999e-05,2]
[344411024,1733420114249,500.0,7.397e-05,2]
[344411025,1733420114291,500.0,7.697e-05,2]
[344411026,1733420114328,200.0,9.999e-05,2]
[344411027,1733420114364,500.0,9.999e-05,2]
[344411028,1733420114404,500.0,9.898e-05,2]
[344411029,1733420114440,500.0,7.397e-05,2]
[344411030,1733420114493,500.0,7.697e-05,2]
[344411031,1733420114816,500.0,9.999e-05,2]
[344411032,1733420114855,557.92,7.397e-05,2]
[344411033,1733420114902,197.15588017,8.999e-05,2]
[344411034,1733420114937,497.26,9.999e-05,2]
[344411035,1733420115118,500.0,7.697e-05,2]
[344411036,1733420115162,500.0,7.397e-05,2]
[344411037,1733420115198,500.0,7.397e-05,2]
[344411038,1733420115238,500.0,7.397e-05,2]
[344411039,1733420115273,500.0,7.397e-05,2]
[344411040,1733420115307,500.0,7.397e-05,2]
[344411041,1733420115340,150.0,0.0001,2]
[344411042,1733420115374,500.0,7.397e-05,2]
[344411043,1733420115423,500.0,7.697e-05,2]
[344411044,1733420115457,500.0,7.397e-05,2]
[344411045,1733420115496,500.0,7.697e-05,2]
[344411046,1733420115542,500.0,8.999e-05,2]
[344411047,1733420115576,500.0,7.397e-05,2]
[344411048,1733420115610,400.4,7.397e-05,2]
[344411049,1733420115679,300.56547045,9.898e-05,2]
[344411050,1733420115945,500.0,7.397e-05,2]
[344411051,1733420116300,500.0,7.397e-05,2]
[344411052,1733420116601,500.0,7.397e-05,2]
[344411053,1733420116723,500.58046161,9.898e-05,2]
[344411054,1733420116866,500.0,7.397e-05,2]
[344411055,1733420116974,1166.0,9.77e-05,2]
[344411056,1733420117252,500.0,7.697e-05,2]
[344411057,1733420117491,500.0,7.397e-05,2]
[344411058,1733420117566,500.0,7.697e-05,2]
[344411083,1733421031500,-11927.4,7.013e-05,2]
[344411084,1733421031511,-177.79766424,7.121e-05,2]
[344411085,1733421031520,-799.99,7.122e-05,2]
[344411086,1733421031529,-250.0,7.194e-05,2]
[344411087,1733421031538,-150.0,7.37e-05,2]
[344411088,1733421031548,-500.0,7.373e-05,2]
[344411089,1733421031557,-506.62,7.395e-05,2]
[344411090,1733421031566,-499.54,7.395e-05,2]
[344411091,1733421031575,-504.35,7.395e-05,2]
[344411092,1733421031585,-500.21,7.395e-05,2]
[344411093,1733421031594,-492.62,7.395e-05,2]
[344411094,1733421031603,-501.11,7.395e-05,2]
[344411095,1733421031612,-502.98,7.395e-05,2]
[344411096,1733421031620,-509.67,7.395e-05,2]
[344411097,1733421031629,-502.39,7.395e-05,2]
[344411098,1733421031638,-507.12,7.396e-05,2]
[344411099,1733421031647,-703.20960966,7.396e-05,2]
[344411100,1733421031658,-550.12752163,7.396e-05,2]
[344411101,1733421031667,-177.79766424,7.396e-05,2]
[344411102,1733421031676,-22.44958457,7.396e-05,2]
[344411103,1733421031688,-513.38219973,7.396e-05,2]
[344411104,1733421031709,-9732.82983115,7.396e-05,2]
[344411105,1733421031721,-12271.64867051,7.396e-05,2]
[344411106,1733421031731,-1096.10478348,7.396e-05,2]
[344411107,1733421031745,-646.9888024,7.396e-05,2]
[344411108,1733421031755,-1209.496,7.396e-05,2]
[344411109,1733421031767,-671.48012816,7.396e-05,2]
[344411110,1733421031776,-271.43,7.396e-05,2]
[344411111,1733421031786,-157.43,7.396e-05,2]
[344411112,1733421031795,-495.35,7.396e-05,2]
[344411113,1733421031804,-499.52,7.396e-05,2]
[344411114,1733421031813,-496.88,7.396e-05,2]
[344411115,1733421031823,-505.34,7.396e-05,2]
[344411116,1733421031832,-499.19,7.396e-05,2]
[344411117,1733421031841,-499.65,7.396e-05,2]
[344411118,1733421031851,-497.9,7.396e-05,2]
[344411119,1733421031860,-490.48,7.396e-05,2]
[344411120,1733421031869,-2216.01,7.396e-05,2]
[344411121,1733421031878,-950.11,7.396e-05,2]
[344411122,1733421031888,-1196.01,7.396e-05,2]
[344411123,1733421031897,-150.99,7.396e-05,2]
[344411124,1733421031907,-499.14,7.396e-05,2]
[344411125,1733421031916,-492.41,7.397e-05,2]
[344411126,1733421031925,-492.23,7.397e-05,2]
[344411128,1733421031935,-502.35,7.397e-05,2]
[344411130,1733421031945,-506.9,7.397e-05,2]
[344411132,1733421031954,-76.49795247,7.397e-05,2]
[344411134,1733421031965,-424.38204753,7.397e-05,2]
[344411136,1733421031974,-497.95,7.397e-05,2]
[344411138,1733421031984,-501.75200853,7.397e-05,2]
[344411141,1733421031995,-500.0,7.397e-05,2]
[344411143,1733421032006,-500.0,7.397e-05,2]
[344411144,1733421032015,-500.0,7.397e-05,2]
[344411146,1733421032024,-500.0,7.397e-05,2]
[344411148,1733421032033,-500.0,7.397e-05,2]
[344411150,1733421032043,-417.98404072,7.397e-05,2]
[344411153,1733421032053,-500.0,7.397e-05,2]
[344411154,1733421032062,-500.0,7.397e-05,2]
[344411157,1733421032071,-500.0,7.397e-05,2]
[344411159,1733421032080,-500.0,7.397e-05,2]
[344411161,1733421032090,-500.0,7.397e-05,2]
[344411163,1733421032099,-500.0,7.397e-05,2]
[344411164,1733421032108,-500.0,7.397e-05,2]
[344411166,1733421032117,-500.0,7.397e-05,2]
[344411168,1733421032126,-500.0,7.397e-05,2]
[344411170,1733421032135,-500.0,7.397e-05,2]
[344411172,1733421032144,-500.0,7.397e-05,2]
[344411174,1733421032153,-556.61841404,7.397e-05,2]
[344411176,1733421032162,-500.0,7.397e-05,2]
[344411178,1733421032171,-500.0,7.397e-05,2]
[344411180,1733421032181,-500.0,7.397e-05,2]
[344411182,1733421032190,-500.0,7.397e-05,2]
[344411184,1733421032200,-500.0,7.397e-05,2]
[344411186,1733421032210,-500.0,7.397e-05,2]
[344411188,1733421032223,-500.0,7.397e-05,2]
[344411190,1733421032233,-331.8,7.397e-05,2]
[344411192,1733421032244,-500.0,7.397e-05,2]
[344411194,1733421032254,-500.0,7.397e-05,2]
[344411196,1733421032265,-500.0,7.397e-05,2]
[344411198,1733421032274,-500.0,7.397e-05,2]
[344411200,1733421032283,-500.0,7.397e-05,2]
[344411202,1733421032293,-500.0,7.397e-05,2]
[344411204,1733421032303,-500.0,7.397e-05,2]
[344411206,1733421032312,-577.8,7.397e-05,2]
[344411208,1733421032322,-500.0,7.397e-05,2]
[344411210,1733421032331,-500.0,7.397e-05,2]
[344411212,1733421032340,-500.0,7.397e-05,2]
[344411214,1733421032349,-500.0,7.397e-05,2]
[344411216,1733421032359,-500.0,7.397e-05,2]
[344411218,1733421032368,-500.0,7.397e-05,2]
[344411220,1733421032379,-500.0,7.397e-05,2]
[344411222,1733421032388,-500.0,7.397e-05,2]
[344411224,1733421032397,-211.30498604,7.397e-05,2]
[344411226,1733421032407,-500.0,7.397e-05,2]
[344411228,1733421032416,-500.0,7.397e-05,2]
[344411229,1733421032425,-500.0,7.397e-05,2]
[344411231,1733421032436,-500.0,7.397e-05,2]
[344411233,1733421032447,-500.0,7.397e-05,2]
[344411234,1733421032456,-500.0,7.397e-05,2]
[344411235,1733421032466,-500.0,7.397e-05,2]
[344411236,1733421032475,-500.0,7.397e-05,2]
[344411237,1733421032485,-500.0,7.397e-05,2]
[344411238,1733421032497,-500.0,7.397e-05,2]
[344411239,1733421032506,-500.0,7.397e-05,2]
[344411240,1733421032516,-500.0,7.397e-05,2]
[344411241,1733421032525,-636.57,7.397e-05,2]
[344411242,1733421032535,-500.0,7.397e-05,2]
[344411243,1733421032545,-500.0,7.397e-05,2]
[344411244,1733421032555,-500.0,7.397e-05,2]
[344411245,1733421032565,-500.0,7.397e-05,2]
[344411246,1733421032578,-500.0,7.397e-05,2]
[344411247,1733421032587,-500.0,7.397e-05,2]
[344411248,1733421032597,-500.0,7.397e-05,2]
[344411249,1733421032607,-500.0,7.397e-05,2]
[344411250,1733421032617,-500.0,7.397e-05,2]
[344411251,1733421032626,-167.95,7.397e-05,2]
[344411252,1733421032636,-500.0,7.397e-05,2]
[344411253,1733421032645,-500.0,7.397e-05,2]
[344411254,1733421032655,-500.0,7.397e-05,2]
[344411255,1733421032664,-500.0,7.397e-05,2]
[344411256,1733421032674,-500.0,7.397e-05,2]
[344411257,1733421032683,-500.0,7.397e-05,2]
[344411258,1733421032692,-500.0,7.397e-05,2]
[344411259,1733421032702,-500.0,7.397e-05,2]
[344411260,1733421032711,-500.0,7.397e-05,2]
[344411261,1733421032721,-500.0,7.397e-05,2]
[344411262,1733421032730,-622.65,7.397e-05,2]
[344411263,1733421032740,-500.0,7.397e-05,2]
[344411264,1733421032751,-500.0,7.397e-05,2]
[344411265,1733421032760,-500.0,7.397e-05,2]
[344411266,1733421032770,-500.0,7.397e-05,2]
[344411267,1733421032780,-500.0,7.397e-05,2]
[344411268,1733421032789,-500.0,7.397e-05,2]
[344411269,1733421032799,-500.0,7.397e-05,2]
[344411270,1733421032808,-500.0,7.397e-05,2]
[344411271,1733421032818,-500.0,7.397e-05,2]
[344411272,1733421032828,-500.0,7.397e-05,2]
[344411273,1733421032837,-500.0,7.397e-05,2]
[344411274,1733421032846,-335.2,7.397e-05,2]
[344411275,1733421032855,-500.0,7.397e-05,2]
[344411276,1733421032865,-500.0,7.397e-05,2]
[344411277,1733421032874,-500.0,7.397e-05,2]
[344411278,1733421032884,-500.0,7.397e-05,2]
[344411279,1733421032893,-500.0,7.397e-05,2]
[344411280,1733421032902,-500.0,7.397e-05,2]
[344411281,1733421032912,-500.0,7.397e-05,2]
[344411282,1733421032921,-500.0,7.397e-05,2]
[344411283,1733421032932,-500.0,7.397e-05,2]
[344411284,1733421032941,-500.0,7.397e-05,2]
[344411285,1733421032953,-500.0,7.397e-05,2]
[344411286,1733421032962,-330.1,7.397e-05,2]
[344411287,1733421032975,-500.0,7.397e-05,2]
[344411288,1733421032984,-500.0,7.397e-05,2]
[344411289,1733421032993,-500.0,7.397e-05,2]
[344411290,1733421033002,-500.0,7.397e-05,2]
[344411291,1733421033012,-477.99882612,7.397e-05,2]
[344411292,1733421033021,-500.0,7.397e-05,2]
[344411293,1733421033031,-500.0,7.397e-05,2]
[344411294,1733421033041,-500.0,7.397e-05,2]
[344411295,1733421033051,-204.52,7.397e-05,2]
[344411296,1733421033064,-500.0,7.397e-05,2]
[344411297,1733421033074,-500.0,7.397e-05,2]
[344411298,1733421033084,-500.0,7.397e-05,2]
[344411299,1733421033093,-500.0,7.397e-05,2]
[344411300,1733421033103,-500.0,7.397e-05,2]
[344411301,1733421033112,-153.84,7.397e-05,2]
[344411302,1733421033122,-500.0,7.397e-05,2]
[344411303,1733421033131,-500.0,7.397e-05,2]
[344411304,1733421033140,-500.0,7.397e-05,2]
[344411305,1733421033150,-500.0,7.397e-05,2]
[344411306,1733421033159,-500.0,7.397e-05,2]
[344411307,1733421033169,-500.0,7.397e-05,2]
[344411308,1733421033178,-500.0,7.397e-05,2]
[344411309,1733421033188,-500.0,7.397e-05,2]
[344411310,1733421033197,-500.0,7.397e-05,2]
[344411311,1733421033207,-500.0,7.397e-05,2]
[344411312,1733421033216,-500.0,7.397e-05,2]
[344411313,1733421033230,-500.0,7.397e-05,2]
[344411314,1733421033239,-500.0,7.397e-05,2]
[344411315,1733421033251,-500.0,7.397e-05,2]
[344411316,1733421033262,-500.0,7.397e-05,2]
[344411317,1733421033272,-500.0,7.397e-05,2]
[344411318,1733421033282,-500.0,7.397e-05,2]
[344411319,1733421033292,-500.0,7.397e-05,2]
[344411320,1733421033304,-500.0,7.397e-05,2]
[344411321,1733421033314,-500.0,7.397e-05,2]
[344411322,1733421033323,-500.0,7.397e-05,2]
[344411323,1733421033333,-273.39929352,7.397e-05,2]
[344411324,1733421033343,-500.0,7.397e-05,2]
[344411325,1733421033352,-500.0,7.397e-05,2]
[344411326,1733421033362,-184.08617148,7.397e-05,2]
[344411327,1733421033372,-500.0,7.397e-05,2]
[344411328,1733421033381,-391.52572388,7.397e-05,2]
[344411329,1733421033397,-108.47427612,7.397e-05,2]
[344411330,1733421033408,-393.30833355,7.397e-05,2]
[344411331,1733421034031,-106.69166645,7.397e-05,2]
[344411332,1733421034041,-500.0,7.397e-05,2]
[344411333,1733421034051,-500.0,7.397e-05,2]
[344411334,1733421034060,-500.0,7.397e-05,2]
[344411335,1733421034070,-500.0,7.397e-05,2]
[344411336,1733421034080,-391.31,7.397e-05,2]
[344411337,1733421034090,-500.0,7.397e-05,2]
[344411338,1733421034099,-500.0,7.397e-05,2]
[344411339,1733421034108,-500.0,7.397e-05,2]
[344411340,1733421034118,-500.0,7.397e-05,2]
[344411341,1733421034128,-500.0,7.397e-05,2]
[344411342,1733421034137,-500.0,7.397e-05,2]
[344411343,1733421034147,-500.0,7.397e-05,2]
[344411344,1733421034156,-500.0,7.397e-05,2]
[344411345,1733421034165,-563.11202142,7.397e-05,2]
[344411346,1733421034175,-545.42,7.397e-05,2]
[344411347,1733421034184,-500.0,7.397e-05,2]
[344411348,1733421034194,-565.6,7.397e-05,2]
[344411349,1733421034204,-497.0610409,7.397e-05,2]
[344411350,1733421034217,-500.0,7.397e-05,2]
[344411351,1733421034228,-500.0,7.397e-05,2]
[344411352,1733421034238,-500.0,7.397e-05,2]
[344411353,1733421034255,-500.0,7.397e-05,2]
[344411354,1733421034266,-500.0,7.397e-05,2]
[344411355,1733421034276,-500.0,7.397e-05,2]
[344411356,1733421034287,-500.0,7.397e-05,2]
[344411357,1733421034297,-218.55911857,7.397e-05,2]
[344411358,1733421034307,-254.84989842,7.397e-05,2]
[344411359,1733421034317,-500.0,7.397e-05,2]
[344411360,1733421034328,-500.0,7.397e-05,2]
[344411361,1733421034338,-578.85042841,7.397e-05,2]
[344411362,1733421034347,-500.0,7.397e-05,2]
[344411363,1733421034356,-500.0,7.397e-05,2]
[344411364,1733421034366,-500.0,7.397e-05,2]
[344411365,1733421034376,-500.0,7.397e-05,2]
[344411366,1733421034385,-500.0,7.397e-05,2]
[344411367,1733421034394,-500.0,7.397e-05,2]
[344411368,1733421034404,-500.0,7.397e-05,2]
[344411369,1733421034414,-500.0,7.397e-05,2]
[344411370,1733421034423,-500.0,7.397e-05,2]
[344411371,1733421034433,-500.0,7.397e-05,2]
[344411372,1733421034442,-500.0,7.397e-05,2]
[344411373,1733421034452,-500.0,7.397e-05,2]
[344411374,1733421034462,-500.0,7.397e-05,2]
[344411375,1733421034472,-500.0,7.397e-05,2]
[344411376,1733421034481,-500.0,7.397e-05,2]
[344411377,1733421034491,-335.1,7.397e-05,2]
[344411378,1733421034502,-601.08,7.397e-05,2]
[344411379,1733421034511,-601.08,7.397e-05,2]
[344411380,1733421034521,-601.08,7.397e-05,2]
[344411381,1733421034531,-601.08,7.397e-05,2]
[344411382,1733421034541,-601.08,7.397e-05,2]
[344411383,1733421034551,-601.08,7.397e-05,2]
[344411384,1733421034561,-601.08,7.397e-05,2]
[344411385,1733421034571,-601.08,7.397e-05,2]
[344411386,1733421034581,-601.08,7.397e-05,2]
[344411387,1733421034591,-601.08,7.397e-05,2]
[344411388,1733421034601,-601.08,7.397e-05,2]
[344411389,1733421034611,-601.08,7.397e-05,2]
[344411390,1733421034621,-601.08,7.397e-05,2]
[344411391,1733421034631,-601.08,7.397e-05,2]
[344411392,1733421034640,-601.08,7.397e-05,2]
[344411393,1733421034650,-601.08,7.397e-05,2]
[344411394,1733421034659,-601.08,7.397e-05,2]
[344411395,1733421034669,-601.08,7.397e-05,2]
[344411396,1733421034678,-601.08,7.397e-05,2]
[344411397,1733421034687,-601.08,7.397e-05,2]
[344411398,1733421034698,-601.08,7.397e-05,2]
[344411399,1733421034707,-601.08,7.397e-05,2]
[344411400,1733421034717,-150.0,7.479e-05,2]
[344411401,1733421034726,-1000.0,7.497e-05,2]
[344411402,1733421034736,-2500.0,7.497e-05,2]
[344411403,1733421034748,-500.0,7.596e-05,2]
[344411404,1733421034758,-500.0,7.596e-05,2]
[344411405,1733421034768,-30.06832582,7.596e-05,2]
[344411406,1733421034781,-1158.92167418,7.596e-05,2]
[344411407,1733421034790,-596.96,7.596e-05,2]
[344411408,1733421034801,-613.4291526,7.596e-05,2]
[344411409,1733421034811,-977.23,7.596e-05,2]
[344411410,1733421034820,-500.0,7.596e-05,2]
[344411411,1733421034830,-967.07,7.596e-05,2]
[344411412,1733421034840,-323.47054117,7.596e-05,2]
[344411413,1733421034849,-500.0,7.596e-05,2]
[344411414,1733421034858,-500.0,7.596e-05,2]
[344411415,1733421034867,-500.0,7.596e-05,2]
[344411416,1733421034877,-500.0,7.596e-05,2]
[344411417,1733421034887,-500.0,7.596e-05,2]
[344411418,1733421034896,-500.0,7.596e-05,2]
[344411419,1733421034906,-500.0,7.596e-05,2]
[344411420,1733421034916,-500.0,7.596e-05,2]
[344411421,1733421034926,-500.0,7.596e-05,2]
[344411422,1733421034935,-500.0,7.596e-05,2]
[344411423,1733421034945,-500.0,7.596e-05,2]
[344411424,1733421034954,-500.0,7.596e-05,2]
[344411425,1733421034964,-1540.51,7.596e-05,2]
[344411426,1733421034973,-1033.72,7.596e-05,2]
[344411427,1733421034983,-950.57,7.596e-05,2]
[344411428,1733421034997,-500.0,7.596e-05,2]
[344411429,1733421035007,-500.0,7.596e-05,2]
[344411430,1733421035017,-574.36836579,7.596e-05,2]
[344411431,1733421035026,-1283.64,7.596e-05,2]
[344411432,1733421035036,-500.0,7.596e-05,2]
[344411433,1733421035046,-500.0,7.596e-05,2]
[344411434,1733421035055,-500.0,7.596e-05,2]
[344411435,1733421035065,-278.56021268,7.596e-05,2]
[344411436,1733421035074,-500.0,7.596e-05,2]
[344411437,1733421035084,-597.45005358,7.596e-05,2]
[344411438,1733421035097,-533.71994642,7.596e-05,2]
[344411439,1733421035106,-500.0,7.596e-05,2]
[344411440,1733421035116,-64.23357361,7.596e-05,2]
[344411441,1733421035128,-435.76642639,7.596e-05,2]
[344411442,1733421035138,-500.0,7.596e-05,2]
[344411443,1733421035147,-500.0,7.596e-05,2]
[344411444,1733421035157,-500.0,7.596e-05,2]
[344411445,1733421035166,-655.5,7.596e-05,2]
[344411446,1733421035176,-450.68071504,7.596e-05,2]
[344411447,1733421035187,-49.31928496,7.596e-05,2]
[344411448,1733421035197,-500.0,7.596e-05,2]
[344411449,1733421035206,-500.0,7.596e-05,2]
[344411450,1733421035216,-348.21122329,7.596e-05,2]
[344411451,1733421035229,-306.0805242,7.596e-05,2]
[344411459,1733421037522,-601.08,7.397e-05,2]
[344411460,1733421037533,-601.24484873,7.397e-05,2]
[344411461,1733421037542,-500.0,7.397e-05,2]
[344411462,1733421037552,-500.0,7.397e-05,2]
[344411463,1733421037562,-500.0,7.397e-05,2]
[344411464,1733421037571,-500.0,7.397e-05,2]
[344411465,1733421037581,-500.0,7.397e-05,2]
[344411466,1733421037591,-500.0,7.397e-05,2]
[344411467,1733421037600,-193.9194758,7.596e-05,2]
[344411468,1733421037610,-303.20646416,7.596e-05,2]
[344411469,1733421037622,-135.6840358,7.596e-05,2]
[344411470,1733421037633,-972.84,7.596e-05,2]
[344411471,1733421037642,-646.08,7.596e-05,2]
[344411472,1733421037652,-888.27271263,7.596e-05,2]
[344411473,1733421037664,-2036.60728737,7.596e-05,2]
[344411474,1733421037674,-500.0,7.596e-05,2]
[344411475,1733421037683,-284.40324164,7.596e-05,2]
[344411476,1733421037693,-500.0,7.596e-05,2]
[344411477,1733421037703,-500.0,7.596e-05,2]
[344411478,1733421037718,-500.0,7.596e-05,2]
[344411479,1733421037728,-2817.56,7.596e-05,2]
[344411480,1733421037738,-500.0,7.596e-05,2]
[344411481,1733421037749,-500.0,7.596e-05,2]
[344411482,1733421037758,-500.0,7.596e-05,2]
[344411483,1733421037768,-500.0,7.596e-05,2]
[344411485,1733421037778,-500.0,7.596e-05,2]
[344411486,1733421037788,-500.0,7.596e-05,2]
[344411488,1733421037797,-500.0,7.596e-05,2]
[344411490,1733421037807,-500.0,7.596e-05,2]
[344411492,1733421037817,-210.82010172,7.596e-05,2]
[344411494,1733421037827,-2623.42,7.596e-05,2]
[344411496,1733421037836,-500.0,7.596e-05,2]
[344411497,1733421037845,-500.0,7.596e-05,2]
[344411498,1733421037855,-2216.39,7.596e-05,2]
[344411499,1733421037864,-500.0,7.596e-05,2]
[344411500,1733421037873,-500.0,7.596e-05,2]
[344411501,1733421037883,-500.0,7.596e-05,2]
[344411503,1733421037892,-685.97,7.596e-05,2]
[344411505,1733421037902,-500.0,7.596e-05,2]
[344411507,1733421037911,-3732.26,7.596e-05,2]
[344411509,1733421037921,-500.0,7.596e-05,2]
[344411511,1733421037930,-500.0,7.596e-05,2]
[344411513,1733421037939,-500.0,7.596e-05,2]
[344411514,1733421037948,-500.0,7.596e-05,2]
[344411516,1733421037958,-500.0,7.596e-05,2]
[344411518,1733421037968,-500.0,7.596e-05,2]
[344411520,1733421037977,-500.0,7.596e-05,2]
[344411522,1733421037987,-500.0,7.596e-05,2]
[344411524,1733421037999,-500.0,7.596e-05,2]
[344411526,1733421038009,-500.0,7.596e-05,2]
[344411528,1733421038018,-500.0,7.596e-05,2]
[344411530,1733421038034,-500.0,7.596e-05,2]
[344411532,1733421038044,-125868.69901687,7.597e-05,2]
[344411534,1733421038056,-6596.03655,7.597e-05,2]
[344411536,1733421038067,-2957.66111518,7.597e-05,2]
[344411539,1733421039620,-500.0,7.397e-05,2]
[344411540,1733421039630,-500.0,7.397e-05,2]
[344411541,1733421039639,-500.0,7.397e-05,2]
[344411542,1733421039649,-500.0,7.397e-05,2]
[344411543,1733421039658,-500.0,7.397e-05,2]
[344411544,1733421039668,-500.0,7.397e-05,2]
[344411545,1733421039677,-500.0,7.397e-05,2]
[344411546,1733421039686,-1139.44,7.596e-05,2]
[344411547,1733421039695,-5472.56,7.597e-05,2]
[344411548,1733421039707,-2021.587994,7.597e-05,2]
[344411549,1733421039718,-929.74505239,7.597e-05,2]
[344411550,1733421039730,-587.385,7.597e-05,2]
[344411554,1733421042527,-500.0,7.397e-05,2]
[344411555,1733421042537,-500.0,7.397e-05,2]
[344411556,1733421042548,-500.0,7.397e-05,2]
[344411557,1733421042558,-500.0,7.397e-05,2]
[344411558,1733421042567,-500.0,7.397e-05,2]
[344411559,1733421042577,-500.0,7.397e-05,2]
[344411560,1733421042586,-500.0,7.397e-05,2]
[344411561,1733421042596,-500.0,7.397e-05,2]
[344411562,1733421042606,-457.52,7.397e-05,2]
[344411563,1733421042617,-500.0,7.596e-05,2]
[344411564,1733421042627,-504.23220242,7.596e-05,2]
[344411565,1733421042637,-500.0,7.596e-05,2]
[344411566,1733421042646,-20082.83236718,7.597e-05,2]
[344411567,1733421042658,-3036.02032385,7.597e-05,2]
[344411568,1733421042669,-1614.03821696,7.597e-05,2]
[344411581,1733421045486,-675.60039227,7.597e-05,2]
[344411582,1733421045497,-1565.4,7.597e-05,2]
[344411583,1733421045674,-748.5516374,7.597e-05,2]
[344411584,1733421045686,-5042.75,7.597e-05,2]
[344411585,1733421045698,-29959.2749339,7.597e-05,2]
[344411586,1733421045708,-195.58,7.609e-05,2]
[344411587,1733421045718,-250.0,7.609e-05,2]
[344411588,1733421045727,-200.0,7.677e-05,2]
[344411589,1733421045737,-1482.95296947,7.678e-05,2]
[344411590,1733421045747,-625.62078399,7.678e-05,2]
[344411591,1733421045757,-200.0,7.678e-05,2]
[344411592,1733421045766,-469.215588,7.679e-05,2]
[344411593,1733421045775,-200.0,7.679e-05,2]
[344411594,1733421045785,-1112.2147271,7.68e-05,2]
[344411595,1733421045795,-200.0,7.68e-05,2]
[344411596,1733421045804,-469.215588,7.68e-05,2]
[344411597,1733421045814,-834.16104532,7.68e-05,2]
[344411598,1733421045824,-834.16104532,7.68e-05,2]
[344411599,1733421045834,-200.0,7.681e-05,2]
[344411600,1733421045844,-351.911691,7.681e-05,2]
[344411601,1733421045854,-1482.95296947,7.681e-05,2]
[344411602,1733421045864,-1112.2147271,7.681e-05,2]
[344411603,1733421045874,-200.0,7.682e-05,2]
[344411604,1733421045884,-200.0,7.682e-05,2]
[344411605,1733421045901,-200.0,7.683e-05,2]
[344411606,1733421045921,-469.215588,7.683e-05,2]
[344411607,1733421045941,-1112.2147271,7.683e-05,2]
[344411608,1733421045951,-625.62078399,7.683e-05,2]
[344411609,1733421045961,-200.0,7.684e-05,2]
[344411610,1733421045971,-200.0,7.684e-05,2]
[344411611,1733421045981,-625.62078399,7.684e-05,2]
[344411612,1733421045991,-834.16104532,7.684e-05,2]
[344411613,1733421046005,-834.16104532,7.684e-05,2]
[344411614,1733421046023,-625.62078399,7.685e-05,2]
[344411615,1733421046033,-263.93376824,7.685e-05,2]
[344411616,1733421046042,-200.0,7.685e-05,2]
[344411617,1733421046053,-351.911691,7.685e-05,2]
[344411618,1733421046063,-200.0,7.685e-05,2]
[344411619,1733421046073,-834.16104532,7.685e-05,2]
[344411620,1733421046083,-1977.27062595,7.686e-05,2]
[344411621,1733421046093,-1112.2147271,7.686e-05,2]
[344411623,1733421046102,-200.0,7.687e-05,2]
[344411624,1733421046112,-351.911691,7.687e-05,2]
[344411625,1733421046121,-200.0,7.689e-05,2]
[344411626,1733421046130,-469.215588,7.689e-05,2]
[344411628,1733421046142,-263.93376824,7.689e-05,2]
[344411629,1733421046152,-1977.27062595,7.69e-05,2]
[344411630,1733421046162,-263.93376824,7.69e-05,2]
[344411631,1733421046171,-469.215588,7.691e-05,2]
[344411632,1733421046180,-351.911691,7.692e-05,2]
[344411633,1733421046189,-1977.27062595,7.692e-05,2]
[344411634,1733421046199,-1112.2147271,7.693e-05,2]
[344411635,1733421046209,-1482.95296947,7.693e-05,2]
[344411636,1733421046220,-1482.95296947,7.693e-05,2]
[344411637,1733421046232,-1977.27062595,7.695e-05,2]